[Event "Early-Titled-Tuesday-Blitz-March-26-2024"]
[Site "Chess.com"]
[Date "2024.03.26"]
[Round "2"]
[White "leoduarte"]
[Black "DishonorOnYourCow"]
[Result "1-0"]
[WhiteElo "2411"]
[BlackElo "2539"]
[TimeControl "180+1"]
[EndTime "8:18:26 PDT"]
[Termination "leoduarte won by resignation"]

1. d4 {[%clk 0:02:51]} 1... Nf6 {[%clk 0:02:59.2]} 2. Bf4 {[%clk 0:02:50.3]}
2... g6 {[%clk 0:02:59.5]} 3. Nc3 {[%clk 0:02:50.7]} 3... d5 {[%clk 0:03:00]} 4.
e3 {[%clk 0:02:49.3]} 4... Bg7 {[%clk 0:03:00.6]} 5. h4 {[%clk 0:02:49.8]} 5...
h5 {[%clk 0:02:55.8]} 6. Nf3 {[%clk 0:02:49.4]} 6... O-O {[%clk 0:02:56]} 7. Qd2
{[%clk 0:02:44.6]} 7... c5 {[%clk 0:02:55.8]} 8. Ne5 {[%clk 0:02:44.4]} 8... Nc6
{[%clk 0:02:51.3]} 9. Be2 {[%clk 0:02:43.9]} 9... cxd4 {[%clk 0:02:29.9]} 10.
exd4 {[%clk 0:02:43.8]} 10... Qb6 {[%clk 0:02:30]} 11. O-O-O {[%clk 0:02:41.8]}
11... Ne4 {[%clk 0:02:20]} 12. Nxe4 {[%clk 0:01:55.1]} 12... dxe4 {[%clk
0:02:20.9]} 13. g4 {[%clk 0:01:36]} 13... Bxg4 {[%clk 0:01:59.6]} 14. Bxg4
{[%clk 0:01:32.1]} 14... hxg4 {[%clk 0:01:59]} 15. h5 {[%clk 0:00:51.1]} 15...
Nxe5 {[%clk 0:01:57.9]} 16. Bxe5 {[%clk 0:00:50.5]} 16... Rad8 {[%clk
0:01:45.8]} 17. Bxg7 {[%clk 0:00:45.1]} 17... Kxg7 {[%clk 0:01:45.1]} 18. hxg6
{[%clk 0:00:42.7]} 18... Qxg6 {[%clk 0:01:43.8]} 19. d5 {[%clk 0:00:28.1]} 19...
b6 {[%clk 0:01:33.5]} 20. Qd4+ {[%clk 0:00:25.6]} 20... f6 {[%clk 0:01:32.1]}
21. Kb1 {[%clk 0:00:24.5]} 21... Rh8 {[%clk 0:01:30.8]} 22. Rxh8 {[%clk
0:00:23.3]} 22... Rxh8 {[%clk 0:01:29.9]} 23. d6 {[%clk 0:00:21]} 23... exd6
{[%clk 0:01:29.3]} 24. Qxd6 {[%clk 0:00:21.9]} 24... Rf8 {[%clk 0:01:29.3]} 25.
Qe7+ {[%clk 0:00:20.6]} 25... Rf7 {[%clk 0:01:29.5]} 26. Qe6 {[%clk 0:00:21.2]}
26... f5 {[%clk 0:01:19.5]} 27. Qe5+ {[%clk 0:00:19.9]} 27... Qf6 {[%clk
0:01:19.5]} 28. Qf4 {[%clk 0:00:19.2]} 28... Kg6 {[%clk 0:01:14.4]} 29. Rd6
{[%clk 0:00:19]} 29... Kg7 {[%clk 0:01:08.4]} 30. Rxf6 {[%clk 0:00:18.6]} 30...
Rxf6 {[%clk 0:01:09.3]} 31. c4 {[%clk 0:00:14.9]} 31... Kg6 {[%clk 0:01:09.1]}
32. b3 {[%clk 0:00:14]} 32... a5 {[%clk 0:01:07.5]} 33. Kc2 {[%clk 0:00:14.3]}
33... Re6 {[%clk 0:01:06.8]} 34. a3 {[%clk 0:00:14]} 34... Rc6 {[%clk
0:01:04.6]} 35. Kc3 {[%clk 0:00:13.8]} 35... Re6 {[%clk 0:00:59.2]} 36. b4
{[%clk 0:00:13.8]} 36... axb4+ {[%clk 0:00:58.3]} 37. axb4 {[%clk 0:00:14.7]}
37... Rc6 {[%clk 0:00:49.1]} 38. Kd4 {[%clk 0:00:13.9]} 38... Re6 {[%clk
0:00:39.9]} 39. Kd5 {[%clk 0:00:12.7]} 39... Re8 {[%clk 0:00:25]} 40. c5 {[%clk
0:00:13.2]} 40... bxc5 {[%clk 0:00:22.9]} 41. bxc5 {[%clk 0:00:14.1]} 41... e3
{[%clk 0:00:21]} 42. fxe3 {[%clk 0:00:11.8]} 42... Re4 {[%clk 0:00:21]} 43. Qg3
{[%clk 0:00:09.9]} 43... Kg5 {[%clk 0:00:19.1]} 44. c6 {[%clk 0:00:09.9]} 44...
f4 {[%clk 0:00:18.8]} 45. exf4+ {[%clk 0:00:09.3]} 45... Rxf4 {[%clk 0:00:19.7]}
46. Qxf4+ {[%clk 0:00:05.8]} 46... Kxf4 {[%clk 0:00:19.5]} 47. c7 {[%clk
0:00:06.7]} 47... g3 {[%clk 0:00:20.1]} 48. c8=Q {[%clk 0:00:07.2]} 48... Kf3
{[%clk 0:00:18.2]} 49. Qf5+ {[%clk 0:00:07]} 49... Kg2 {[%clk 0:00:18.4]} 50.
Qe4+ {[%clk 0:00:06]} 50... Kh2 {[%clk 0:00:18.2]} 51. Qf4 {[%clk 0:00:05.8]}
51... Kh1 {[%clk 0:00:17.1]} 52. Qf3+ {[%clk 0:00:04.8]} 52... g2 {[%clk
0:00:17.2]} 53. Ke4 {[%clk 0:00:03.7]} 53... Kh2 {[%clk 0:00:16.8]} 54. Qe2
{[%clk 0:00:03.7]} 54... Kh1 {[%clk 0:00:14.7]} 55. Qh5+ {[%clk 0:00:04.2]}
55... Kg1 {[%clk 0:00:14.8]} 56. Kf3 {[%clk 0:00:04.1]} 56... Kf1 {[%clk
0:00:15.3]} 57. Qh3 {[%clk 0:00:04.2]} 57... Ke1 {[%clk 0:00:15.5]} 58. Qxg2
{[%clk 0:00:04.9]} 1-0

[Event "Early-Titled-Tuesday-Blitz-March-26-2024"]
[Site "Chess.com"]
[Date "2024.03.26"]
[Round "2"]
[White "Cobysters"]
[Black "Lukianoo"]
[Result "1/2-1/2"]
[WhiteElo "2571"]
[BlackElo "2810"]
[TimeControl "180+1"]
[EndTime "8:18:29 PDT"]
[Termination "Game drawn by agreement"]

1. c4 {[%clk 0:03:00.9]} 1... Nf6 {[%clk 0:02:58.5]} 2. Nc3 {[%clk 0:03:01.4]}
2... e6 {[%clk 0:02:58.8]} 3. e4 {[%clk 0:03:01.6]} 3... d5 {[%clk 0:02:59.1]}
4. e5 {[%clk 0:03:02.5]} 4... d4 {[%clk 0:02:59.6]} 5. exf6 {[%clk 0:03:03.2]}
5... dxc3 {[%clk 0:03:00]} 6. bxc3 {[%clk 0:02:56.3]} 6... Qxf6 {[%clk
0:02:58.9]} 7. d4 {[%clk 0:02:54.1]} 7... Nd7 {[%clk 0:02:56]} 8. Nf3 {[%clk
0:02:52.5]} 8... b6 {[%clk 0:02:55.1]} 9. Bg5 {[%clk 0:02:49.5]} 9... Qg6 {[%clk
0:02:55.5]} 10. Bd3 {[%clk 0:02:50]} 10... Qh5 {[%clk 0:02:55.8]} 11. Be4 {[%clk
0:02:50]} 11... Rb8 {[%clk 0:02:55.1]} 12. Bc6 {[%clk 0:02:48]} 12... Bd6 {[%clk
0:02:37]} 13. Qa4 {[%clk 0:02:41.1]} 13... f6 {[%clk 0:02:25]} 14. Be3 {[%clk
0:02:31.2]} 14... Qa5 {[%clk 0:02:13]} 15. Qxa5 {[%clk 0:02:27.3]} 15... bxa5
{[%clk 0:02:13.9]} 16. c5 {[%clk 0:02:27.2]} 16... Be7 {[%clk 0:02:13.2]} 17.
O-O {[%clk 0:02:20]} 17... Kf7 {[%clk 0:01:45.8]} 18. Rfb1 {[%clk 0:02:17.3]}
18... Rd8 {[%clk 0:01:45]} 19. Nd2 {[%clk 0:02:08.6]} 19... Ba6 {[%clk
0:01:40.9]} 20. Rxb8 {[%clk 0:02:03]} 20... Nxb8 {[%clk 0:01:40.2]} 21. Ba4
{[%clk 0:02:03]} 21... Bd3 {[%clk 0:01:35]} 22. Nb3 {[%clk 0:01:59.6]} 22... Na6
{[%clk 0:01:09.2]} 23. Nxa5 {[%clk 0:01:56.7]} 23... Rb8 {[%clk 0:01:09.5]} 24.
Bb3 {[%clk 0:01:55]} 24... Rb5 {[%clk 0:00:47.4]} 25. Nc6 {[%clk 0:01:51.9]}
25... Nb8 {[%clk 0:00:47.7]} 26. Nxe7 {[%clk 0:01:40]} 26... Kxe7 {[%clk
0:00:47]} 27. Re1 {[%clk 0:01:34.8]} 27... Nc6 {[%clk 0:00:18]} 28. Bf4 {[%clk
0:01:33.7]} 28... e5 {[%clk 0:00:18.4]} 29. Ba4 {[%clk 0:00:49.8]} 29... Rb1
{[%clk 0:00:13.4]} 30. Rxb1 {[%clk 0:00:50.2]} 30... Bxb1 {[%clk 0:00:14.3]} 31.
Be3 {[%clk 0:00:50.7]} 31... Na5 {[%clk 0:00:10.5]} 32. Bb3 {[%clk 0:00:48.1]}
32... Nxb3 {[%clk 0:00:10.4]} 33. axb3 {[%clk 0:00:49]} 33... Ba2 {[%clk
0:00:10.9]} 34. b4 {[%clk 0:00:49.4]} 34... Bc4 {[%clk 0:00:11.1]} 35. f4 {[%clk
0:00:49]} 35... exd4 {[%clk 0:00:08.9]} 36. Bxd4 {[%clk 0:00:47.1]} 36... c6
{[%clk 0:00:06.9]} 37. Kf2 {[%clk 0:00:46.5]} 37... a6 {[%clk 0:00:07.4]} 38.
Ke3 {[%clk 0:00:46.7]} 38... Ke6 {[%clk 0:00:07.7]} 39. g4 {[%clk 0:00:46.2]}
39... g6 {[%clk 0:00:06.7]} 40. Kf3 {[%clk 0:00:42.8]} 40... f5 {[%clk 0:00:07]}
41. h3 {[%clk 0:00:36.5]} 41... h5 {[%clk 0:00:05.9]} 42. gxh5 {[%clk
0:00:35.6]} 42... gxh5 {[%clk 0:00:06.8]} 43. Kg3 {[%clk 0:00:36.4]} 43... Kf7
{[%clk 0:00:07.2]} 44. Kh4 {[%clk 0:00:36.3]} 44... Kg6 {[%clk 0:00:07.5]} 45.
Be5 {[%clk 0:00:36.1]} 45... Bd5 {[%clk 0:00:07.8]} 46. Bd6 {[%clk 0:00:36.4]}
46... Bc4 {[%clk 0:00:08.1]} 47. Kg3 {[%clk 0:00:36.9]} 47... Bf1 {[%clk
0:00:07.5]} 48. Be7 {[%clk 0:00:35.8]} 48... Kf7 {[%clk 0:00:07.1]} 49. Bg5
{[%clk 0:00:36.1]} 49... Kg6 {[%clk 0:00:07.5]} 50. h4 {[%clk 0:00:35.5]} 50...
Kf7 {[%clk 0:00:07.7]} 51. Kf2 {[%clk 0:00:35.7]} 51... Bb5 {[%clk 0:00:06.7]}
52. Ke3 {[%clk 0:00:35.7]} 52... Ke6 {[%clk 0:00:07.1]} 53. Kd4 {[%clk
0:00:36.2]} 53... Ba4 {[%clk 0:00:06.3]} 54. c4 {[%clk 0:00:34.4]} 54... Bd1
{[%clk 0:00:06.3]} 55. Kc3 {[%clk 0:00:32]} 55... Be2 {[%clk 0:00:05.8]} 56. Bd8
{[%clk 0:00:30.8]} 56... Bf1 {[%clk 0:00:05.9]} 57. Ba5 {[%clk 0:00:30.7]} 57...
Be2 {[%clk 0:00:06]} 58. Kd4 {[%clk 0:00:28.8]} 58... Bf1 {[%clk 0:00:06.3]} 59.
Bc7 {[%clk 0:00:29.1]} 59... Be2 {[%clk 0:00:06.5]} 60. Be5 {[%clk 0:00:29.7]}
60... Bf1 {[%clk 0:00:06.9]} 61. b5 {[%clk 0:00:28.8]} 61... axb5 {[%clk
0:00:06.7]} 62. cxb5 {[%clk 0:00:29.7]} 62... Bxb5 {[%clk 0:00:06.9]} 63. Kc3
{[%clk 0:00:30]} 63... Bf1 {[%clk 0:00:07]} 64. Kb4 {[%clk 0:00:30.9]} 64... Bb5
{[%clk 0:00:07.3]} 65. Ka5 {[%clk 0:00:31.8]} 65... Kd7 {[%clk 0:00:07.7]} 66.
Kb6 {[%clk 0:00:32.4]} 66... Bf1 {[%clk 0:00:08.2]} 1/2-1/2

[Event "Early-Titled-Tuesday-Blitz-March-26-2024"]
[Site "Chess.com"]
[Date "2024.03.26"]
[Round "2"]
[White "temus_galaktionov"]
[Black "andrew-blr"]
[Result "1-0"]
[WhiteElo "2881"]
[BlackElo "2591"]
[TimeControl "180+1"]
[EndTime "8:18:32 PDT"]
[Termination "temus_galaktionov won on time"]

1. d4 {[%clk 0:03:00.9]} 1... d5 {[%clk 0:02:59.5]} 2. c4 {[%clk 0:03:00.6]}
2... e6 {[%clk 0:02:58.9]} 3. Nf3 {[%clk 0:02:57.9]} 3... c5 {[%clk 0:02:59.1]}
4. cxd5 {[%clk 0:02:54.8]} 4... exd5 {[%clk 0:02:59.1]} 5. Nc3 {[%clk
0:02:54.2]} 5... Nc6 {[%clk 0:02:59.3]} 6. dxc5 {[%clk 0:02:53.2]} 6... d4
{[%clk 0:02:59.3]} 7. Ne4 {[%clk 0:02:53.3]} 7... Bf5 {[%clk 0:02:57.7]} 8. Nd6+
{[%clk 0:02:53.2]} 8... Bxd6 {[%clk 0:02:57.3]} 9. cxd6 {[%clk 0:02:54.1]} 9...
Qxd6 {[%clk 0:02:57.8]} 10. Bd2 {[%clk 0:02:55]} 10... Nf6 {[%clk 0:02:57.2]}
11. g3 {[%clk 0:02:55.3]} 11... O-O {[%clk 0:02:55.5]} 12. Bg2 {[%clk
0:02:55.4]} 12... Rfe8 {[%clk 0:02:55.7]} 13. O-O {[%clk 0:02:55.4]} 13... Be4
{[%clk 0:02:54.4]} 14. Re1 {[%clk 0:02:54.2]} 14... Qd5 {[%clk 0:02:52.4]} 15.
Qa4 {[%clk 0:02:44.5]} 15... d3 {[%clk 0:02:48.2]} 16. Qb3 {[%clk 0:02:36.5]}
16... Qh5 {[%clk 0:02:23.6]} 17. Bf4 {[%clk 0:02:07]} 17... Rad8 {[%clk
0:02:15.7]} 18. Rad1 {[%clk 0:02:04.4]} 18... dxe2 {[%clk 0:01:59.3]} 19. Rxd8
{[%clk 0:02:03.9]} 19... Rxd8 {[%clk 0:01:56.7]} 20. Rxe2 {[%clk 0:01:46.7]}
20... Bd5 {[%clk 0:01:37.7]} 21. Qa3 {[%clk 0:01:30.1]} 21... g5 {[%clk
0:01:35.1]} 22. Bd2 {[%clk 0:01:10.7]} 22... Bc4 {[%clk 0:01:20.3]} 23. Re1
{[%clk 0:00:56.7]} 23... g4 {[%clk 0:01:20.3]} 24. Bg5 {[%clk 0:00:47.4]} 24...
Qg6 {[%clk 0:00:46.4]} 25. Bxf6 {[%clk 0:00:44.1]} 25... Qxf6 {[%clk 0:00:46.4]}
26. Nh4 {[%clk 0:00:43]} 26... Nd4 {[%clk 0:00:43.6]} 27. Qc5 {[%clk 0:00:31.9]}
27... Ne2+ {[%clk 0:00:41.2]} 28. Kh1 {[%clk 0:00:31.8]} 28... b5 {[%clk
0:00:33.6]} 29. b3 {[%clk 0:00:26.3]} 29... Bd3 {[%clk 0:00:32.1]} 30. Qe3
{[%clk 0:00:20.6]} 30... h6 {[%clk 0:00:26]} 31. h3 {[%clk 0:00:20.7]} 31... Qc3
{[%clk 0:00:25.5]} 32. Rd1 {[%clk 0:00:20.6]} 32... Qc2 {[%clk 0:00:21.9]} 33.
Qd2 {[%clk 0:00:20.9]} 33... Qxd2 {[%clk 0:00:20.5]} 34. Rxd2 {[%clk 0:00:21.8]}
34... Nc1 {[%clk 0:00:10.1]} 35. hxg4 {[%clk 0:00:20.2]} 35... b4 {[%clk
0:00:08.9]} 36. Nf3 {[%clk 0:00:18.8]} 36... Rc8 {[%clk 0:00:06.8]} 37. Ne5
{[%clk 0:00:18.5]} 37... Bh7 {[%clk 0:00:04.9]} 38. Bd5 {[%clk 0:00:18.2]} 38...
Kg7 {[%clk 0:00:04.4]} 39. Nxf7 {[%clk 0:00:17.2]} 39... Bg8 {[%clk 0:00:03]}
40. Nd6 {[%clk 0:00:16.7]} 40... Rd8 {[%clk 0:00:03.1]} 41. Bxg8 {[%clk
0:00:14.5]} 41... Kxg8 {[%clk 0:00:03.8]} 42. Kg2 {[%clk 0:00:14.5]} 42... Nxa2
{[%clk 0:00:04]} 43. Rxa2 {[%clk 0:00:14]} 43... Rxd6 {[%clk 0:00:04.6]} 44.
Rxa7 {[%clk 0:00:14.9]} 44... Rd3 {[%clk 0:00:05.3]} 45. Kh3 {[%clk 0:00:14.4]}
45... Rxb3 {[%clk 0:00:05.6]} 46. f4 {[%clk 0:00:14.2]} 46... Rb1 {[%clk
0:00:04.9]} 47. Rb7 {[%clk 0:00:13.2]} 47... b3 {[%clk 0:00:04.8]} 48. g5 {[%clk
0:00:13.5]} 48... hxg5 {[%clk 0:00:04.6]} 49. f5 {[%clk 0:00:14.1]} 49... b2
{[%clk 0:00:02.5]} 50. Kg4 {[%clk 0:00:14.4]} 50... Kf8 {[%clk 0:00:03.2]} 51.
Kxg5 {[%clk 0:00:14.3]} 51... Rg1 {[%clk 0:00:02.4]} 52. Rxb2 {[%clk 0:00:12.8]}
52... Rxg3+ {[%clk 0:00:03.3]} 53. Kf6 {[%clk 0:00:13.5]} 53... Kg8 {[%clk
0:00:01.2]} 54. Rb8+ {[%clk 0:00:13.7]} 1-0

[Event "Early-Titled-Tuesday-Blitz-March-26-2024"]
[Site "Chess.com"]
[Date "2024.03.26"]
[Round "2"]
[White "NelsonLinda"]
[Black "CFalcons8"]
[Result "1-0"]
[WhiteElo "2640"]
[BlackElo "2401"]
[TimeControl "180+1"]
[EndTime "8:18:35 PDT"]
[Termination "NelsonLinda won by resignation"]

1. Nf3 {[%clk 0:02:27.9]} 1... Nf6 {[%clk 0:02:59.9]} 2. g3 {[%clk 0:02:28.8]}
2... e6 {[%clk 0:03:00.4]} 3. Bg2 {[%clk 0:02:29.4]} 3... d5 {[%clk 0:03:00.4]}
4. O-O {[%clk 0:02:30.1]} 4... c5 {[%clk 0:03:00.8]} 5. d3 {[%clk 0:02:31]} 5...
Nc6 {[%clk 0:03:01.1]} 6. Nbd2 {[%clk 0:02:31.7]} 6... Be7 {[%clk 0:03:01.4]} 7.
e4 {[%clk 0:02:32.4]} 7... O-O {[%clk 0:03:01.4]} 8. Re1 {[%clk 0:02:32.6]} 8...
b5 {[%clk 0:03:00.1]} 9. e5 {[%clk 0:02:32.5]} 9... Nd7 {[%clk 0:02:58.4]} 10.
Nf1 {[%clk 0:02:32.1]} 10... b4 {[%clk 0:02:56.5]} 11. h4 {[%clk 0:02:31.4]}
11... c4 {[%clk 0:02:55.5]} 12. d4 {[%clk 0:02:28.6]} 12... a5 {[%clk
0:02:52.7]} 13. h5 {[%clk 0:02:24.2]} 13... Ra6 {[%clk 0:02:36.7]} 14. Ne3
{[%clk 0:02:13.8]} 14... f5 {[%clk 0:02:35.1]} 15. exf6 {[%clk 0:02:11.8]} 15...
Nxf6 {[%clk 0:02:32.3]} 16. h6 {[%clk 0:02:09.9]} 16... g6 {[%clk 0:02:27.7]}
17. Nh2 {[%clk 0:01:52.2]} 17... a4 {[%clk 0:02:18.9]} 18. Neg4 {[%clk
0:01:41.9]} 18... Nxg4 {[%clk 0:02:14.4]} 19. Nxg4 {[%clk 0:01:42.8]} 19... Bf6
{[%clk 0:02:09.1]} 20. Nxf6+ {[%clk 0:01:18.3]} 20... Qxf6 {[%clk 0:02:10]} 21.
Be3 {[%clk 0:01:18.9]} 21... Ne7 {[%clk 0:02:00.7]} 22. a3 {[%clk 0:00:59.9]}
22... bxa3 {[%clk 0:01:44.2]} 23. Rxa3 {[%clk 0:01:00.8]} 23... Nf5 {[%clk
0:01:43.2]} 24. Qd2 {[%clk 0:01:00.4]} 24... Rb6 {[%clk 0:01:32.3]} 25. c3
{[%clk 0:00:54.6]} 25... Bd7 {[%clk 0:01:32.4]} 26. Bg5 {[%clk 0:00:52.3]} 26...
Qf7 {[%clk 0:01:29.8]} 27. Bf4 {[%clk 0:00:52]} 27... Nd6 {[%clk 0:01:26.6]} 28.
Qc2 {[%clk 0:00:37.6]} 28... Qf5 {[%clk 0:01:01.9]} 29. Qe2 {[%clk 0:00:27.6]}
29... Rfb8 {[%clk 0:00:59.7]} 30. Ra2 {[%clk 0:00:26]} 30... Rf8 {[%clk
0:00:45.7]} 31. Be5 {[%clk 0:00:18.1]} 31... Nb5 {[%clk 0:00:42.4]} 32. Bf4
{[%clk 0:00:05.7]} 32... a3 {[%clk 0:00:41]} 33. Qd2 {[%clk 0:00:05.3]} 33...
axb2 {[%clk 0:00:37.6]} 34. Rxb2 {[%clk 0:00:06.2]} 34... Ra8 {[%clk 0:00:27.4]}
35. Reb1 {[%clk 0:00:06.2]} 35... Ra2 {[%clk 0:00:22.8]} 36. Bf1 {[%clk
0:00:02.7]} 36... Qxb1 {[%clk 0:00:20.2]} 37. Rxa2 {[%clk 0:00:01.8]} 37... Nxc3
{[%clk 0:00:09.2]} 38. Ra8+ {[%clk 0:00:01.9]} 38... Kf7 {[%clk 0:00:09.5]} 39.
Qxc3 {[%clk 0:00:02.4]} 39... Rb3 {[%clk 0:00:09.2]} 40. Qa5 {[%clk 0:00:02.9]}
40... c3 {[%clk 0:00:08.7]} 41. Qd8 {[%clk 0:00:02.9]} 41... e5 {[%clk
0:00:05.1]} 42. Qf8+ {[%clk 0:00:02.5]} 42... Ke6 {[%clk 0:00:05.3]} 43. Qg8+
{[%clk 0:00:02.9]} 43... Kd6 {[%clk 0:00:05.3]} 44. Bxe5+ {[%clk 0:00:03.4]}
44... Kc6 {[%clk 0:00:06.2]} 45. Ra6+ {[%clk 0:00:03.5]} 45... Rb6 {[%clk
0:00:04.5]} 46. Rxb6+ {[%clk 0:00:03]} 46... Kxb6 {[%clk 0:00:04.4]} 47. Qb8+
{[%clk 0:00:03]} 47... Ka5 {[%clk 0:00:04.8]} 48. Qxb1 {[%clk 0:00:03.9]} 1-0

[Event "Early-Titled-Tuesday-Blitz-March-26-2024"]
[Site "Chess.com"]
[Date "2024.03.26"]
[Round "2"]
[White "MikeSailer"]
[Black "Happy1712Drummer"]
[Result "1-0"]
[WhiteElo "2078"]
[BlackElo "2446"]
[TimeControl "180+1"]
[EndTime "8:18:35 PDT"]
[Termination "MikeSailer won by checkmate"]

1. d4 {[%clk 0:02:59.5]} 1... d5 {[%clk 0:02:59.8]} 2. Nf3 {[%clk 0:02:59.6]}
2... e6 {[%clk 0:02:57.2]} 3. Bf4 {[%clk 0:02:58.9]} 3... Nf6 {[%clk 0:02:55.4]}
4. e3 {[%clk 0:02:59.3]} 4... Bd6 {[%clk 0:02:51.7]} 5. Nbd2 {[%clk 0:02:57.8]}
5... b6 {[%clk 0:02:51.9]} 6. c3 {[%clk 0:02:57.8]} 6... Bb7 {[%clk 0:02:51.2]}
7. Bd3 {[%clk 0:02:57.8]} 7... Ne4 {[%clk 0:02:50.7]} 8. O-O {[%clk 0:02:56.8]}
8... O-O {[%clk 0:02:47.6]} 9. Qc2 {[%clk 0:02:52.3]} 9... f5 {[%clk 0:02:47]}
10. Ne5 {[%clk 0:02:51.2]} 10... Nd7 {[%clk 0:02:42.4]} 11. Nxd7 {[%clk
0:02:48.4]} 11... Qxd7 {[%clk 0:02:35.4]} 12. Nf3 {[%clk 0:02:45.2]} 12... c5
{[%clk 0:02:20.2]} 13. Bxd6 {[%clk 0:02:36.6]} 13... Qxd6 {[%clk 0:02:16.8]} 14.
Bxe4 {[%clk 0:02:35]} 14... fxe4 {[%clk 0:02:15.2]} 15. Ne5 {[%clk 0:02:35.4]}
15... Rf6 {[%clk 0:02:06.1]} 16. f3 {[%clk 0:02:33.8]} 16... Ba6 {[%clk
0:01:59.9]} 17. Rf2 {[%clk 0:02:24.1]} 17... Raf8 {[%clk 0:01:58.4]} 18. f4
{[%clk 0:02:18.4]} 18... Bb5 {[%clk 0:01:56.2]} 19. a4 {[%clk 0:02:07]} 19...
Be8 {[%clk 0:01:54.9]} 20. a5 {[%clk 0:02:07.5]} 20... b5 {[%clk 0:01:34.9]} 21.
dxc5 {[%clk 0:02:05.4]} 21... Qxc5 {[%clk 0:01:34.8]} 22. Qd2 {[%clk 0:01:42.3]}
22... g5 {[%clk 0:01:27.9]} 23. g3 {[%clk 0:01:35.7]} 23... Bh5 {[%clk
0:01:19.6]} 24. Qd4 {[%clk 0:01:30.4]} 24... Qxd4 {[%clk 0:01:02.4]} 25. cxd4
{[%clk 0:01:25.7]} 25... gxf4 {[%clk 0:01:02.1]} 26. gxf4 {[%clk 0:01:22.4]}
26... Rc8 {[%clk 0:01:01.4]} 27. Rg2+ {[%clk 0:00:43]} 27... Kf8 {[%clk
0:01:00.1]} 28. Nd7+ {[%clk 0:00:42.5]} 28... Kf7 {[%clk 0:00:57.4]} 29. Nxf6
{[%clk 0:00:43.4]} 29... Kxf6 {[%clk 0:00:58.3]} 30. Rd2 {[%clk 0:00:38.8]}
30... Bf3 {[%clk 0:00:41.8]} 31. Kf2 {[%clk 0:00:38.4]} 31... Rc4 {[%clk
0:00:40]} 32. a6 {[%clk 0:00:30.2]} 32... Bh5 {[%clk 0:00:31]} 33. Ra3 {[%clk
0:00:20.3]} 33... Be8 {[%clk 0:00:23.7]} 34. Rc3 {[%clk 0:00:20.2]} 34... Ra4
{[%clk 0:00:22.2]} 35. Rc8 {[%clk 0:00:12.9]} 35... Bh5 {[%clk 0:00:10.7]} 36.
Rb8 {[%clk 0:00:12.2]} 36... Rxa6 {[%clk 0:00:08.2]} 37. Rxb5 {[%clk 0:00:12]}
37... Be8 {[%clk 0:00:08.1]} 38. Rb7 {[%clk 0:00:11.9]} 38... Bc6 {[%clk
0:00:06.9]} 39. Rxh7 {[%clk 0:00:11.3]} 39... Rb6 {[%clk 0:00:07.2]} 40. Rh8
{[%clk 0:00:08.8]} 40... a5 {[%clk 0:00:06.5]} 41. Rc8 {[%clk 0:00:07.9]} 41...
a4 {[%clk 0:00:05.8]} 42. Rc2 {[%clk 0:00:07.4]} 42... Bb5 {[%clk 0:00:05.5]}
43. Ra8 {[%clk 0:00:06.7]} 43... Bd3 {[%clk 0:00:03.6]} 44. Rc7 {[%clk
0:00:06.5]} 44... Rxb2+ {[%clk 0:00:02.7]} 45. Kg3 {[%clk 0:00:07.2]} 45... Bc2
{[%clk 0:00:02.5]} 46. Rf8+ {[%clk 0:00:06.1]} 46... Kg6 {[%clk 0:00:02.6]} 47.
Rff7 {[%clk 0:00:04.6]} 47... Bd1 {[%clk 0:00:01.9]} 48. Rg7+ {[%clk 0:00:04.8]}
48... Kh6 {[%clk 0:00:02.5]} 49. Rh7+ {[%clk 0:00:05.1]} 49... Kg6 {[%clk
0:00:03.1]} 50. Rcg7+ {[%clk 0:00:05.5]} 50... Kf6 {[%clk 0:00:03.5]} 51. h4
{[%clk 0:00:03.9]} 51... Re2 {[%clk 0:00:03.2]} 52. Rf7+ {[%clk 0:00:02.6]}
52... Kg6 {[%clk 0:00:03.5]} 53. h5# {[%clk 0:00:02.4]} 1-0